bitfinex-derivatives/quotes_BTCF0:USTF0_20250811
["timestamp","ask_amount","ask_price","bid_price","bid_amount"]
[1754949966265,0.71920819,118590.0,118580.0,1.23242]
[1754949966466,0.71920819,118590.0,118580.0,1.3167439]
[1754949966766,0.71920819,118590.0,118580.0,0.9559439]
[1754949966965,0.71920819,118590.0,118580.0,1.0031539]
[1754949971866,0.71920819,118590.0,118580.0,0.91883]
[1754949972067,0.71920819,118590.0,118580.0,1.0031539]
[1754949972575,1.08000819,118590.0,118580.0,0.0052]
[1754949973070,1.87524819,118590.0,118580.0,0.0052]
[1754949975670,0.084331,118570.0,118560.0,1.22056608]
[1754949975878,1.17863272,118570.0,118560.0,0.96781418]
[1754949976167,0.87162686,118570.0,118560.0,0.13552608]
[1754949976377,0.87162686,118570.0,118560.0,0.21986418]
[1754949977264,0.87162686,118570.0,118560.0,0.22286418]
[1754949977468,0.87172686,118570.0,118560.0,0.22596418]
[1754949978170,0.87172686,118570.0,118560.0,0.14162608]
[1754949978576,0.87172686,118570.0,118560.0,0.02339608]
[1754949978767,0.87172686,118570.0,118560.0,0.10921608]
[1754949978971,0.87172686,118570.0,118560.0,0.02339608]
[1754949979174,1.97385272,118570.0,118560.0,0.02339608]
[1754949979365,0.0843452,118550.0,118540.0,0.202034]
[1754949979571,0.50917106,118550.0,118540.0,0.9979523]
[1754949980677,0.50917106,118550.0,118540.0,0.9136]
[1754949980881,0.87007106,118550.0,118540.0,0.9137]
[1754949981573,0.87007106,118550.0,118540.0,0.01689]
[1754949981574,0.88886907,118550.0,118540.0,0.01689]
[1754949981878,0.88886907,118550.0,118540.0,0.09623]
[1754949982069,0.88886907,118550.0,118540.0,0.07273]
[1754949982270,0.88886907,118550.0,118540.0,0.0011]
[1754949982673,0.88886907,118550.0,118540.0,0.05022]
[1754949982871,0.88886907,118550.0,118540.0,0.06409]
[1754949983073,0.88886907,118550.0,118540.0,0.11958]
[1754949983269,0.88886907,118550.0,118540.0,0.08236]
[1754949983469,1.68398907,118550.0,118540.0,0.0011]
[1754949987376,0.88886907,118550.0,118540.0,0.0011]
[1754949987581,1.68394907,118550.0,118540.0,0.08236]
[1754949987779,1.68394907,118550.0,118540.0,0.11958]
[1754949989385,1.68494907,118550.0,118540.0,0.11958]
[1754949989587,1.63767907,118550.0,118540.0,0.2039316]
[1754949989884,0.84255907,118550.0,118540.0,0.08236]
[1754949990085,0.84255907,118550.0,118540.0,0.07273]
[1754949990086,0.88986907,118550.0,118540.0,0.07273]
[1754949990586,0.88986907,118550.0,118540.0,0.0011]
[1754949990978,0.89086907,118550.0,118540.0,0.0001]
[1754949993282,0.0843661,118520.0,118510.0,0.01734793]
[1754949993592,0.0843732,118510.0,118500.0,0.1549288]
[1754949993789,0.50919906,118510.0,118500.0,0.10190008]
[1754949993983,0.50919906,118510.0,118500.0,0.46270008]
[1754949994384,0.46252906,118510.0,118500.0,0.46270008]
[1754949994690,0.42435906,118510.0,118500.0,0.46280008]
[1754949995890,0.42435906,118510.0,118500.0,0.47525008]
[1754949996483,0.0001,118510.0,118500.0,0.47525008]
[1754949996686,0.0001,118510.0,118500.0,0.95202394]
[1754949997389,0.1083132,118510.0,118500.0,0.95202394]
[1754949997589,0.41531906,118510.0,118500.0,0.47575008]
[1754949997791,0.50929906,118510.0,118500.0,0.47575008]
[1754949999383,0.87009906,118510.0,118500.0,0.11495008]
[1754950000090,0.87009906,118510.0,118500.0,0.0854803]
[1754950000492,0.87009906,118510.0,118500.0,0.0974303]
[1754950000685,0.87009906,118510.0,118500.0,0.0854803]
[1754950000886,0.87009906,118510.0,118500.0,0.0011]
[1754950001291,0.87009906,118510.0,118500.0,0.0854803]
[1754950001486,0.93723945,118510.0,118500.0,0.0974303]
[1754950001691,0.93723945,118510.0,118500.0,0.1165503]
[1754950002394,0.57643945,118510.0,118500.0,0.1173503]
[1754950005497,0.57643945,118510.0,118500.0,0.0854803]
[1754950006996,0.57643945,118510.0,118500.0,0.0974303]
[1754950008296,0.26943359,118510.0,118500.0,0.0974303]
[1754950008497,0.71643945,118510.0,118500.0,0.0974303]
[1754950008793,0.40943359,118510.0,118500.0,0.0974303]
[1754950008997,0.71643945,118510.0,118500.0,0.1173503]
[1754950013995,0.57643945,118510.0,118500.0,0.1173503]
[1754950014902,0.26943359,118510.0,118500.0,0.1173503]
[1754950015103,0.57643945,118510.0,118500.0,0.4781503]
[1754950018094,0.49206625,118510.0,118500.0,0.4781503]
[1754950018300,0.49206625,118510.0,118500.0,0.78565616]
[1754950018301,0.0001,118510.0,118500.0,0.78565616]
[1754950018503,0.02429,118510.0,118500.0,0.95442416]
[1754950018706,0.0001,118510.0,118500.0,0.95442416]
[1754950019106,0.02429,118510.0,118500.0,0.95442416]
[1754950019994,0.02429,118510.0,118500.0,0.6474183]
[1754950025610,0.02429,118510.0,118500.0,0.95442416]
[1754950025909,0.37105586,118510.0,118500.0,0.6474183]
[1754950026210,0.42686586,118510.0,118500.0,0.6469183]
[1754950026604,0.42686586,118510.0,118500.0,0.6474183]
[1754950027510,0.42686586,118510.0,118500.0,0.6469183]
[1754950028810,0.42686586,118510.0,118500.0,0.4786503]
[1754950029512,0.11986,118510.0,118500.0,0.4786503]
[1754950032114,0.2042336,118510.0,118500.0,0.4786503]
[1754950032419,0.42686586,118510.0,118500.0,0.4781503]
[1754950032613,0.42686586,118510.0,118500.0,0.4786503]
[1754950032805,0.11986,118510.0,118500.0,0.4786503]
[1754950034414,0.2042336,118510.0,118500.0,0.62941582]
[1754950036217,0.2042336,118510.0,118500.0,0.62991582]
[1754950036416,0.2042336,118510.0,118500.0,0.62941582]
[1754950036609,0.51123946,118510.0,118500.0,0.26861582]
[1754950038018,0.51123946,118510.0,118500.0,1.03102582]
[1754950038215,0.51123946,118510.0,118500.0,0.8797603]
[1754950038814,0.51123946,118510.0,118500.0,0.8917103]
[1754950039411,0.51123946,118510.0,118500.0,0.8797603]
[1754950041315,0.51123946,118510.0,118500.0,0.8917103]
[1754950042216,0.51123946,118510.0,118500.0,0.9108303]
[1754950042417,0.51123946,118510.0,118500.0,0.9116303]
[1754950044718,0.51123946,118510.0,118500.0,1.06289582]
[1754950047120,0.51234946,118510.0,118500.0,1.06339582]
[1754950047425,0.51234946,118510.0,118500.0,1.06289582]
[1754950050217,0.2053436,118510.0,118500.0,1.42369582]
[1754950050414,0.51234946,118510.0,118500.0,1.42369582]
[1754950050918,0.44100946,118510.0,118500.0,1.42419582]
[1754950051224,0.44100946,118510.0,118500.0,1.2729303]
[1754950051525,0.48922946,118510.0,118500.0,1.2729303]
[1754950051723,0.02429,118510.0,118500.0,1.57943616]
[1754950051918,0.0001,118510.0,118500.0,1.73120168]
[1754950052428,0.02384,118510.0,118500.0,1.73120168]
[1754950056017,0.02384,118510.0,118500.0,1.42419582]
[1754950056620,0.04807,118510.0,118500.0,1.42419582]
[1754950057925,0.04807,118510.0,118500.0,1.42423905]
[1754950058227,0.03322,118510.0,118500.0,1.42423905]
[1754950058526,0.02384,118510.0,118500.0,1.42423905]
[1754950059623,0.37886586,118510.0,118500.0,0.62945905]
[1754950059826,0.51145946,118510.0,118500.0,1.06245905]
[1754950060122,0.51145946,118510.0,118500.0,0.91119353]
[1754950060927,0.51145946,118510.0,118500.0,1.06245905]
[1754950063922,0.51145946,118510.0,118500.0,1.03058905]
[1754950064124,0.51145946,118510.0,118500.0,0.89127353]
[1754950065125,0.51145946,118510.0,118500.0,0.87932353]
[1754950065526,0.51145946,118510.0,118500.0,0.89127353]
[1754950066124,0.51145946,118510.0,118500.0,0.01309323]
[1754950066329,0.87372844,118510.0,118500.0,0.79482323]
[1754950066922,0.87372844,118510.0,118500.0,0.87920393]
[1754950067227,2.37372844,118510.0,118500.0,0.79482323]
[1754950070535,2.37372844,118510.0,118490.0,0.15126552]
[1754950070536,0.0843807,118500.0,118490.0,0.15126552]
[1754950070825,0.084395,118480.0,118470.0,1.00142203]
[1754950071034,1.17871672,118480.0,118470.0,0.98947203]
[1754950071431,0.0844092,118460.0,118450.0,0.3608]
[1754950071622,0.67975766,118460.0,118450.0,0.9942991]
[1754950071828,0.67985766,118460.0,118450.0,0.9943991]
[1754950072921,0.68085766,118460.0,118450.0,0.9943991]
[1754950073124,0.0011,118460.0,118450.0,1.3556991]
[1754950073326,0.001,118460.0,118450.0,1.57829026]
[1754950073635,0.58491196,118480.0,118470.0,0.0844021]
[1754950073827,0.61056196,118480.0,118470.0,1.2657121]
[1754950074130,1.43191992,118480.0,118470.0,0.8883521]
[1754950074430,1.04051196,118480.0,118470.0,0.8883521]
[1754950074641,1.04061196,118480.0,118470.0,0.8884521]
[1754950075026,1.04061196,118480.0,118470.0,0.0948521]
[1754950075230,1.34761782,118480.0,118470.0,0.0948521]
[1754950075431,1.34761782,118480.0,118470.0,0.0001]
[1754950075632,1.35361782,118480.0,118470.0,0.0845021]
[1754950076229,1.35361782,118480.0,118470.0,0.0001]
[1754950076529,1.35361782,118480.0,118470.0,0.0845021]
[1754950078039,1.35361782,118480.0,118470.0,0.0001]
[1754950078442,1.37230472,118480.0,118470.0,0.0001]
[1754950078641,2.16594472,118480.0,118470.0,0.0001]
[1754950079141,2.30604472,118480.0,118470.0,0.0001]
[1754950080434,2.30604472,118480.0,118470.0,0.0845021]
[1754950080630,1.99895886,118480.0,118470.0,0.0948521]
[1754950081045,2.30596472,118480.0,118470.0,0.0001]
[1754950081437,0.898393,118480.0,118470.0,0.094852]
[1754950081740,1.99895886,118480.0,118470.0,0.111412]
[1754950082335,1.99895886,118480.0,118470.0,0.094852]
[1754950082536,2.30596472,118480.0,118470.0,0.094852]
[1754950082934,2.30596472,118480.0,118470.0,0.084502]
[1754950083135,2.30596472,118480.0,118470.0,0.0001]
[1754950083342,2.30596472,118480.0,118470.0,0.0845021]
[1754950083544,1.51240472,118480.0,118470.0,0.0845021]
[1754950085046,1.15160472,118480.0,118470.0,0.0845021]
[1754950085648,1.51240472,118480.0,118470.0,0.0001]
[1754950086051,1.15160472,118480.0,118470.0,0.0001]
[1754950086350,1.51240472,118480.0,118470.0,0.0001]
[1754950086550,1.51240472,118480.0,118470.0,0.0845026]
[1754950087152,1.51240472,118480.0,118470.0,0.0001]
[1754950089950,1.51240472,118480.0,118470.0,0.0845027]
[1754950090151,1.20539886,118480.0,118470.0,0.0845027]
[1754950090452,1.51240472,118480.0,118470.0,0.0845027]
[1754950090853,1.51240472,118480.0,118470.0,0.0001]
[1754950091657,1.51240472,118480.0,118470.0,0.0845027]
[1754950092062,1.51240472,118480.0,118470.0,0.0001]
[1754950092855,0.898393,118480.0,118470.0,0.0001]
[1754950093056,1.51240472,118480.0,118470.0,0.0001]
[1754950093662,1.37230472,118480.0,118470.0,0.0001]
[1754950094449,1.06529886,118480.0,118470.0,0.0845027]
[1754950094663,1.06529886,118480.0,118470.0,0.0948527]
[1754950095259,1.06529886,118480.0,118470.0,0.0845027]
[1754950095966,0.70449886,118480.0,118470.0,0.0845027]
[1754950096265,0.70449886,118480.0,118470.0,0.1114127]
[1754950096459,1.01150472,118480.0,118470.0,0.0001]
[1754950100164,0.0844097,118460.0,118450.0,0.4452168]
[1754950100369,0.50979556,118460.0,118450.0,0.4555668]
[1754950100762,0.50979556,118460.0,118450.0,0.0947668]
[1754950101171,0.51079556,118460.0,118450.0,0.0947668]
[1754950101467,0.51079556,118460.0,118450.0,0.0948668]
[1754950101468,0.2038897,118460.0,118450.0,0.0948668]
[1754950101667,0.51089556,118460.0,118450.0,0.0948668]
[1754950101869,0.57786172,118460.0,118450.0,0.0948668]
[1754950103773,0.71796172,118460.0,118450.0,0.0948668]
[1754950105370,0.41095586,118460.0,118450.0,0.0948668]
[1754950105564,0.71796172,118460.0,118450.0,0.0948668]
[1754950106472,0.71796172,118460.0,118450.0,0.0845168]
[1754950110972,0.57786172,118460.0,118450.0,0.1114268]
[1754950114474,0.0011,118460.0,118450.0,0.41843266]
[1754950114776,0.0011,118460.0,118450.0,0.99807266]
[1754950115269,0.02581,118460.0,118450.0,0.99807266]
[1754950119976,0.02581,118460.0,118450.0,0.6910668]
[1754950120178,0.02581,118460.0,118450.0,0.99807266]
[1754950120373,0.06568,118460.0,118450.0,0.99807266]
[1754950120676,0.09722,118460.0,118450.0,0.6910668]
[1754950120973,0.51089236,118460.0,118450.0,0.4722268]
[1754950121181,0.51089236,118460.0,118450.0,0.26261804]
[1754950121573,0.51089236,118460.0,118450.0,0.23570804]
[1754950122077,0.51089236,118460.0,118450.0,0.4556668]
[1754950124683,0.57763564,118460.0,118450.0,0.4556668]
[1754950125987,0.57763564,118460.0,118450.0,0.0845168]
[1754950126175,0.57763564,118460.0,118450.0,0.0845137]
[1754950126574,0.57763564,118460.0,118450.0,0.0001]
[1754950128588,0.71773564,118460.0,118450.0,0.0001]
[1754950128888,0.71773564,118460.0,118450.0,0.0845139]
[1754950129472,0.06784328,118460.0,118450.0,0.75231976]
[1754950129786,0.15383328,118460.0,118450.0,0.4722239]
[1754950129973,0.09081328,118460.0,118450.0,0.930421]
[1754950130274,0.09081328,118460.0,118450.0,0.62341514]
[1754950130473,0.09081328,118460.0,118450.0,0.930421]
[1754950131677,0.09081328,118460.0,118450.0,0.77922976]
[1754950133389,0.02407,118460.0,118450.0,0.77922976]
[1754950133691,0.0011,118460.0,118450.0,0.77922976]
[1754950133983,0.02407,118460.0,118450.0,0.77922976]
[1754950135386,0.42867586,118460.0,118450.0,0.9041439]
[1754950135985,0.12167,118460.0,118450.0,1.2649439]
[1754950137576,0.06412,118460.0,118450.0,1.2649439]
[1754950137784,0.0011,118460.0,118450.0,1.57194976]
[1754950138082,0.0011,118460.0,118450.0,1.723141]
[1754950138882,0.0011,118460.0,118450.0,1.41613514]
[1754950139184,0.0011,118460.0,118450.0,1.723141]
[1754950139874,0.02407,118460.0,118450.0,1.723141]
[1754950142096,0.02407,118460.0,118450.0,1.57194976]
[1754950142587,0.02407,118460.0,118450.0,1.2649439]
[1754950142799,0.42867586,118460.0,118450.0,0.8874239]
[1754950142990,0.42867586,118460.0,118450.0,0.9039839]
[1754950143185,0.12167,118460.0,118450.0,0.9039839]
[1754950143390,0.42867586,118460.0,118450.0,1.2647839]
[1754950143693,0.42867586,118460.0,118450.0,0.9039839]
[1754950143694,0.51308306,118460.0,118450.0,0.9039839]
[1754950143882,0.51308306,118460.0,118450.0,1.2647839]
[1754950144088,0.0011,118460.0,118450.0,1.2482239]
[1754950144288,0.03826,118460.0,118450.0,1.2482239]
[1754950144788,0.02407,118460.0,118450.0,1.2482239]
[1754950145990,0.0011,118460.0,118450.0,1.76075384]
[1754950146391,0.02407,118460.0,118450.0,1.39985265]
[1754950149196,0.0729,118460.0,118450.0,1.39985265]
[1754950149396,0.12167,118460.0,118450.0,1.39985265]
[1754950152995,0.08709,118460.0,118450.0,1.39985265]
[1754950154799,0.0011,118460.0,118450.0,1.39985265]
[1754950155494,0.02407,118460.0,118450.0,1.39985265]
[1754950155801,0.02407,118460.0,118450.0,1.2482239]
[1754950157202,0.0011,118460.0,118450.0,1.60912509]
[1754950157792,0.02407,118460.0,118450.0,1.2482239]
[1754950158102,0.02407,118460.0,118450.0,1.60912509]
[1754950158896,0.42859388,118500.0,118490.0,0.0843858]
[1754950159104,0.42859388,118500.0,118490.0,0.9008758]
[1754950159105,0.47666388,118500.0,118490.0,0.9008758]
[1754950159503,0.50105388,118500.0,118490.0,0.9008758]
[1754950159703,0.50105388,118500.0,118490.0,0.90923779]
[1754950160201,0.14025388,118500.0,118490.0,1.27003779]
[1754950160505,0.14335388,118500.0,118490.0,0.9009758]
[1754950160898,0.07156388,118500.0,118490.0,0.9009758]
[1754950161101,0.05035388,118500.0,118490.0,0.9009758]
[1754950161299,0.12449388,118500.0,118490.0,0.9009758]
[1754950161605,0.14735388,118500.0,118490.0,1.2617758]
[1754950161804,0.09442388,118500.0,118490.0,1.2617758]
[1754950162002,0.04835388,118500.0,118490.0,1.62267699]
[1754950162206,0.04835388,118500.0,118490.0,1.77445109]
[1754950162706,0.02949,118500.0,118490.0,1.4135499]
[1754950163000,0.02949,118500.0,118490.0,1.26985913]
[1754950167610,0.48739119,118500.0,118490.0,0.47741913]
[1754950167912,0.48739119,118500.0,118490.0,1.25617913]
[1754950168514,0.48739119,118500.0,118490.0,1.2480958]
[1754950168714,0.43434591,118500.0,118490.0,1.2480958]
[1754950168908,0.12649,118500.0,118490.0,1.2388458]
[1754950169213,0.43434591,118500.0,118490.0,1.2480958]
[1754950169609,0.12649,118500.0,118490.0,1.2480958]
[1754950169908,0.43434591,118500.0,118490.0,1.2480958]
[1754950170506,0.02949,118500.0,118490.0,1.2480958]
[1754950170709,0.12649,118500.0,118490.0,1.2480958]
[1754950171109,0.03929,118500.0,118490.0,1.2480958]
[1754950171311,0.02949,118500.0,118490.0,1.2480958]
[1754950173710,0.03079104,118500.0,118490.0,1.2480958]
[1754950174807,0.00640104,118500.0,118490.0,1.2480958]
[1754950175217,0.03079104,118500.0,118490.0,1.2480958]
[1754950178724,0.00640104,118500.0,118490.0,1.2480958]
[1754950179120,0.03079104,118500.0,118490.0,1.2480958]
[1754950180119,0.12779104,118500.0,118490.0,1.2530558]
[1754950184319,0.05600104,118500.0,118490.0,1.2530558]
[1754950184928,0.04059104,118500.0,118490.0,1.2530558]
[1754950185227,0.03079104,118500.0,118490.0,1.2530558]
[1754950187217,0.00640104,118500.0,118490.0,1.2530558]
[1754950187630,0.03079104,118500.0,118490.0,1.2530558]
[1754950188624,0.03079104,118500.0,118490.0,1.4048299]
[1754950191034,0.02949,118500.0,118490.0,1.04272878]
[1754950191241,0.02949,118500.0,118490.0,1.40352878]
[1754950192731,0.02949,118500.0,118490.0,1.25175468]
[1754950196932,0.02949,118500.0,118490.0,1.55951384]
[1754950198532,0.02335,118520.0,118500.0,0.16875]
[1754950198836,0.04698,118520.0,118510.0,1.55862256]
[1754950199438,0.08083,118520.0,118510.0,1.55862256]
[1754950199638,0.08093,118520.0,118510.0,1.55872256]
[1754950199835,0.08193,118520.0,118510.0,1.55872256]
[1754950200337,0.03467,118520.0,118510.0,1.55872256]
[1754950200537,0.01232,118520.0,118510.0,1.55872256]
[1754950200738,0.02645,118520.0,118510.0,1.55872256]
[1754950206341,0.02645,118520.0,118510.0,1.71049666]
[1754950207338,0.0031,118520.0,118510.0,1.71049666]
[1754950208336,0.0031,118520.0,118510.0,2.07129666]
[1754950209140,0.02645,118520.0,118510.0,1.34969666]
[1754950209347,0.02645,118520.0,118510.0,1.71049666]
[1754950209740,0.02645,118520.0,118510.0,1.4027375]
[1754950210347,0.02645,118520.0,118510.0,1.71049666]
[1754950210647,0.02645,118520.0,118510.0,1.34969666]
[1754950210952,0.0031,118520.0,118510.0,1.34969666]
[1754950211141,0.0031,118520.0,118510.0,1.71049666]
[1754950211342,0.02645,118520.0,118510.0,1.55872256]
[1754950214950,0.02645,118520.0,118510.0,1.19792256]
[1754950215152,0.02645,118520.0,118510.0,1.55872256]
[1754950215847,0.02645,118520.0,118510.0,1.19792256]
[1754950216049,0.0031,118520.0,118510.0,1.55872256]
[1754950216446,0.01887952,118530.0,118510.0,1.55872256]
[1754950216447,0.01887952,118530.0,118520.0,0.084371]
[1754950216641,0.04222952,118530.0,118520.0,0.40812016]
[1754950217945,0.04422952,118530.0,118520.0,0.40812016]
[1754950218145,0.02097952,118530.0,118520.0,0.40822016]
[1754950218342,0.0021,118530.0,118520.0,0.76902016]
[1754950218548,0.38415,118560.0,118540.0,0.2530668]
[1754950218847,0.45641,118560.0,118550.0,0.89342]
[1754950219352,0.48132,118560.0,118550.0,0.89342]
[1754950220049,0.48432,118560.0,118550.0,0.89342]
[1754950220355,0.09503,118560.0,118550.0,0.89352]
[1754950220953,0.12862,118560.0,118550.0,0.89352]
[1754950221751,0.0081,118560.0,118550.0,1.20127916]
[1754950222053,0.0081,118560.0,118550.0,1.20962768]
[1754950222250,0.03301,118560.0,118550.0,1.20962768]
[1754950222451,0.0051,118560.0,118550.0,1.20962768]
[1754950222646,0.42707469,118580.0,118570.0,0.0843358]
[1754950222847,0.54125631,118580.0,118570.0,0.8873358]
[1754950223047,0.54125631,118580.0,118570.0,0.8934858]
[1754950223245,0.56616631,118580.0,118570.0,0.8934858]
[1754950223448,0.54735162,118580.0,118570.0,0.8934858]
[1754950223947,0.54735162,118580.0,118570.0,0.8954858]
[1754950224148,0.54745162,118580.0,118570.0,0.8955858]
[1754950224450,0.41154,118580.0,118570.0,0.8955858]
[1754950224654,0.08702,118580.0,118570.0,1.20334496]
[1754950224953,0.12061,118580.0,118570.0,0.8955858]
[1754950225153,0.02501,118580.0,118570.0,0.8955858]
[1754950225352,0.12061,118580.0,118570.0,0.8955858]
[1754950225553,0.02501,118580.0,118570.0,1.20334496]
[1754950225756,0.02501,118580.0,118570.0,0.8955858]
[1754950225957,0.0982,118580.0,118570.0,0.8955858]
[1754950226156,0.12061,118580.0,118570.0,0.8955858]
[1754950227354,0.02501,118580.0,118570.0,0.8955858]
[1754950227854,0.02501,118580.0,118570.0,1.20334496]
[1754950228247,0.02501,118580.0,118570.0,1.56414496]
[1754950229059,0.07383802,118600.0,118590.0,0.0843218]
[1754950229358,0.12051,118600.0,118590.0,1.20091096]
[1754950229652,0.12051,118600.0,118590.0,0.8931518]
[1754950230155,0.12051,118600.0,118590.0,1.20091096]
[1754950230156,0.004,118600.0,118590.0,1.20091096]
[1754950230349,0.0041,118600.0,118590.0,1.20101096]
[1754950230555,0.0071,118600.0,118590.0,0.8930918]
[1754950230759,0.03141762,118600.0,118590.0,1.20085096]
[1754950231056,0.03141762,118600.0,118590.0,1.56165096]
[1754950231853,0.00650762,118600.0,118590.0,1.56165096]
[1754950232251,0.00650762,118600.0,118590.0,0.76897096]
[1754950232450,0.00650762,118600.0,118590.0,1.56137096]
[1754950232451,0.03141762,118600.0,118590.0,1.56137096]
[1754950233258,0.00650762,118600.0,118590.0,1.56137096]
[1754950235659,2e-08,118600.0,118590.0,1.56137096]
[1754950235861,2e-08,118600.0,118590.0,1.56127096]
[1754950237264,0.04892772,118630.0,118610.0,0.3372223]
[1754950237455,0.0956,118630.0,118620.0,1.23904026]
[1754950237655,0.0094,118630.0,118620.0,1.23914026]
[1754950237955,0.0956,118630.0,118620.0,0.9313811]
[1754950238460,0.0976,118630.0,118620.0,0.9313811]
[1754950239162,0.36226738,118650.0,118640.0,0.084287]
[1754950239468,0.48277738,118650.0,118640.0,0.931367]
[1754950239763,0.12197738,118650.0,118640.0,0.931367]
[1754950240969,0.12497738,118650.0,118640.0,0.931367]
[1754950244670,0.20925718,118650.0,118640.0,0.931167]
[1754950244872,0.51701634,118650.0,118640.0,0.931167]
[1754950245170,0.51701634,118650.0,118640.0,0.908417]
[1754950245761,0.51701634,118650.0,118640.0,0.116337]
[1754950245966,0.51701634,118650.0,118640.0,0.908377]
[1754950246377,0.20925728,118650.0,118640.0,0.931127]
[1754950251490,0.11110738,118650.0,118640.0,1.23888616]
[1754950251686,0.03877738,118650.0,118640.0,1.23888616]
[1754950251885,0.03731,118650.0,118640.0,1.23888616]
[1754950253990,0.2050299,118650.0,118640.0,1.23888616]
[1754950254193,0.12075,118650.0,118640.0,1.23888616]
[1754950254685,0.2050299,118650.0,118640.0,0.139087]
[1754950254894,0.2050299,118650.0,118640.0,0.931847]
[1754950255481,0.51278906,118650.0,118640.0,0.01606]
[1754950255681,0.87505631,118650.0,118640.0,0.876947]
[1754950255880,0.87505631,118650.0,118640.0,0.0001]
[1754950256086,0.87505631,118650.0,118640.0,0.79258]
[1754950257086,0.87505631,118650.0,118640.0,0.876867]
[1754950257286,0.87505631,118650.0,118640.0,0.79258]
[1754950257490,0.87505631,118650.0,118640.0,0.876867]
[1754950257794,0.56729715,118650.0,118640.0,0.931477]
[1754950258687,0.87505631,118650.0,118640.0,0.931477]
[1754950261286,0.89916496,118650.0,118640.0,0.931477]
[1754950261687,0.87505631,118650.0,118640.0,0.931477]
[1754950261887,0.5914058,118650.0,118640.0,0.931477]
[1754950262088,0.87505631,118650.0,118640.0,0.931477]
[1754950262494,0.87505631,118650.0,118640.0,0.0001]
[1754950262699,0.87505631,118650.0,118640.0,0.79206]
[1754950262997,0.87505631,118650.0,118640.0,0.0001]
[1754950263194,0.0843083,118610.0,118600.0,0.2529402]
[1754950263394,0.50917746,118610.0,118600.0,0.2846302]
[1754950263697,0.86997746,118610.0,118600.0,0.1686254]
[1754950263886,0.86997746,118610.0,118600.0,0.9605854]
[1754950264291,0.86997746,118610.0,118600.0,0.9667354]
[1754950264493,0.87007746,118610.0,118600.0,0.9668354]
[1754950264901,0.87007746,118610.0,118600.0,0.1687254]
[1754950265090,0.87007746,118610.0,118600.0,0.8763753]
[1754950265595,0.5623183,118610.0,118600.0,0.79206]
[1754950265797,0.87007746,118610.0,118600.0,0.8763753]
[1754950265998,0.87007746,118610.0,118600.0,0.0864153]
[1754950266197,0.87007746,118610.0,118600.0,0.8783753]
[1754950266701,0.87107746,118610.0,118600.0,0.8835253]
[1754950266998,0.87107746,118610.0,118600.0,0.8992253]
[1754950268798,1.23187746,118610.0,118600.0,0.8992253]
[1754950269197,1.23187746,118610.0,118600.0,0.9090653]
[1754950271697,0.87107746,118610.0,118600.0,0.9090653]
[1754950273403,1.23187746,118610.0,118600.0,0.9090653]
[1754950274600,0.51027746,118610.0,118600.0,0.9090653]
[1754950274800,0.87107746,118610.0,118600.0,0.9090653]
[1754950275000,0.5633183,118610.0,118600.0,0.9090653]
[1754950275305,0.87107746,118610.0,118600.0,0.9090653]
[1754950276097,0.87107746,118610.0,118600.0,0.9319853]
[1754950276500,0.87107746,118610.0,118600.0,0.9090653]
[1754950279609,0.87107746,118610.0,118600.0,0.9325653]
[1754950279908,0.76349646,118610.0,118600.0,0.9090653]
[1754950280106,0.5311673,118610.0,118600.0,0.9325653]
[1754950280306,0.5661673,118610.0,118600.0,0.9325653]
[1754950280603,0.5661673,118610.0,118600.0,0.9090653]
[1754950281008,0.87392646,118610.0,118600.0,0.9090653]
[1754950281504,0.5651673,118610.0,118600.0,0.9325653]
[1754950281705,0.87292646,118610.0,118600.0,0.9325653]
[1754950282510,0.5651673,118610.0,118600.0,0.9325653]
[1754950285008,0.48086,118610.0,118600.0,0.9325653]
[1754950285309,0.5651677,118610.0,118600.0,0.9325653]
[1754950288612,0.2043677,118610.0,118600.0,0.9325653]
[1754950289112,0.5651677,118610.0,118600.0,0.9325653]
[1754950289813,0.48086,118610.0,118600.0,0.9325653]
[1754950290013,0.0001,118610.0,118600.0,1.54808362]
[1754950290310,0.0001,118610.0,118600.0,1.60112446]
[1754950290819,0.0001,118610.0,118600.0,1.24032446]
[1754950291107,0.0001,118610.0,118600.0,1.60212446]
[1754950291302,0.0001,118610.0,118600.0,1.24132446]
[1754950291500,0.0001,118610.0,118600.0,1.24232446]
[1754950292518,0.02352,118610.0,118600.0,1.24232446]
[1754950292710,0.02352,118610.0,118600.0,1.24332446]
[1754950293306,0.02352,118610.0,118600.0,1.24232446]
[1754950293811,0.02352,118610.0,118600.0,1.24332446]
[1754950294407,0.0001,118610.0,118600.0,1.24232446]
[1754950299718,0.0001,118610.0,118600.0,1.91088362]
[1754950300116,0.3608,118620.0,118610.0,0.30775916]
[1754950300309,0.3608,118620.0,118610.0,0.41758676]
[1754950300514,0.3608,118620.0,118610.0,0.44723676]
[1754950301122,0.04947,118630.0,118620.0,0.0843005]
[1754950301322,0.1812634,118630.0,118620.0,0.9015005]
[1754950301523,0.1812634,118630.0,118620.0,0.9311505]
[1754950301718,0.2046834,118630.0,118620.0,0.9311505]
[1754950302425,0.87324256,118630.0,118620.0,0.9076505]
[1754950302717,0.2046834,118630.0,118620.0,0.9311505]
[1754950302923,0.5654834,118630.0,118620.0,0.9311505]
[1754950303125,0.2046834,118630.0,118620.0,0.9311505]
[1754950303324,0.5654834,118630.0,118620.0,0.9311505]
[1754950303513,0.5664834,118630.0,118620.0,0.9311505]
[1754950303925,0.5664834,118630.0,118620.0,0.9321505]
[1754950304325,0.87324256,118630.0,118620.0,0.9321505]
[1754950305821,0.5654834,118630.0,118620.0,0.9321505]
[1754950306621,0.87324256,118630.0,118620.0,0.9321505]
[1754950307030,0.5654834,118630.0,118620.0,0.9321505]
[1754950307223,0.87324256,118630.0,118620.0,0.9321505]
[1754950308327,0.5654834,118630.0,118620.0,0.9321505]
[1754950308628,0.87324256,118630.0,118620.0,0.9321505]
[1754950313130,0.5654834,118630.0,118620.0,0.9321505]
[1754950314831,0.87324256,118630.0,118620.0,0.9321505]
[1754950316130,0.5654834,118630.0,118620.0,0.9321505]
[1754950316426,0.87324256,118630.0,118620.0,0.9321505]
[1754950316729,0.5654834,118630.0,118620.0,0.9321505]
[1754950319931,0.87324256,118630.0,118620.0,0.9092405]
[1754950320124,0.87324256,118630.0,118620.0,0.9321505]
[1754950321433,0.87324256,118630.0,118620.0,0.9092405]
[1754950322836,0.87324256,118630.0,118620.0,0.9321505]
[1754950323037,0.87424256,118630.0,118620.0,0.9321505]
[1754950323537,0.87424256,118630.0,118620.0,0.9311505]
[1754950323739,0.0843006,118620.0,118610.0,0.236179]
[1754950324039,0.87059976,118620.0,118610.0,0.79102]
[1754950325131,0.87059976,118620.0,118610.0,0.79202]
[1754950326335,0.87159976,118620.0,118610.0,0.79202]
[1754950326638,0.87159976,118620.0,118610.0,0.79102]